[Event "*** Titled Tuesday Blitz"]
[Site "Chess.com"]
[Date "2021.03.02"]
[Round "6"]
[White "frankshar"]
[Black "IriBu"]
[Result "1/2-1/2"]
[WhiteElo "2358"]
[BlackElo "2551"]
[TimeControl "180+1"]
[EndTime "11:06:40 PST"]
[Termination "Game drawn by repetition"]

1. d4 {[%clk 0:03:00.9]} 1... Nf6 {[%clk 0:02:59.2]} 2. c4 {[%clk 0:03:00.9]}
2... e6 {[%clk 0:02:59.6]} 3. Nf3 {[%clk 0:03:01]} 3... Bb4+ {[%clk 0:02:59.7]}
4. Bd2 {[%clk 0:03:01.4]} 4... Qe7 {[%clk 0:03:00.2]} 5. Nc3 {[%clk 0:03:00.1]}
5... O-O {[%clk 0:02:57]} 6. g3 {[%clk 0:02:56.2]} 6... Bxc3 {[%clk 0:02:56.7]}
7. Bxc3 {[%clk 0:02:55.3]} 7... Ne4 {[%clk 0:02:56.7]} 8. Rc1 {[%clk 0:02:55.4]}
8... Nxc3 {[%clk 0:02:54.8]} 9. Rxc3 {[%clk 0:02:54.6]} 9... d6 {[%clk
0:02:55.4]} 10. Bg2 {[%clk 0:02:53.7]} 10... e5 {[%clk 0:02:54.9]} 11. O-O
{[%clk 0:02:48.8]} 11... a5 {[%clk 0:02:53.3]} 12. c5 {[%clk 0:02:33.2]} 12...
Nc6 {[%clk 0:02:43.1]} 13. cxd6 {[%clk 0:02:23.8]} 13... cxd6 {[%clk 0:02:43.1]}
14. dxe5 {[%clk 0:02:10.5]} 14... dxe5 {[%clk 0:02:41.6]} 15. Qc1 {[%clk
0:01:47.6]} 15... Be6 {[%clk 0:02:41.2]} 16. a3 {[%clk 0:01:39.4]} 16... f6
{[%clk 0:02:41.2]} 17. Qe3 {[%clk 0:01:34.9]} 17... Qc7 {[%clk 0:02:34.7]} 18.
Rfc1 {[%clk 0:01:30.3]} 18... Bd5 {[%clk 0:02:29.5]} 19. Nd2 {[%clk 0:01:04.8]}
19... Qf7 {[%clk 0:02:25.4]} 20. Ne4 {[%clk 0:01:00.3]} 20... Rad8 {[%clk
0:02:23.4]} 21. Nc5 {[%clk 0:00:58.5]} 21... Nd4 {[%clk 0:02:20.4]} 22. Bxd5
{[%clk 0:00:50.6]} 22... Qxd5 {[%clk 0:02:21.3]} 23. b4 {[%clk 0:00:51.2]} 23...
axb4 {[%clk 0:02:19]} 24. axb4 {[%clk 0:00:52.1]} 24... h6 {[%clk 0:02:13.2]}
25. Nd3 {[%clk 0:00:43.6]} 25... Qa2 {[%clk 0:02:10]} 26. Kf1 {[%clk 0:00:40.7]}
26... Qd5 {[%clk 0:02:10]} 27. Kg1 {[%clk 0:00:40.5]} 27... Rd7 {[%clk
0:02:07.8]} 28. Ne1 {[%clk 0:00:31.3]} 28... Rfd8 {[%clk 0:02:01.7]} 29. Nf3
{[%clk 0:00:30.5]} 29... Nf5 {[%clk 0:01:57.6]} 30. Qb6 {[%clk 0:00:27.4]} 30...
e4 {[%clk 0:01:54.9]} 31. Rc5 {[%clk 0:00:20.9]} 31... Qd6 {[%clk 0:01:24.4]}
32. Qxd6 {[%clk 0:00:20.1]} 32... Nxd6 {[%clk 0:01:25]} 33. Nd2 {[%clk
0:00:18.6]} 33... f5 {[%clk 0:01:22.5]} 34. Nc4 {[%clk 0:00:18.1]} 34... g6
{[%clk 0:01:17]} 35. Nxd6 {[%clk 0:00:17.7]} 35... Rxd6 {[%clk 0:01:17.9]} 36.
Rc7 {[%clk 0:00:17.7]} 36... R8d7 {[%clk 0:01:18.5]} 37. Rxd7 {[%clk 0:00:17.6]}
37... Rxd7 {[%clk 0:01:18.8]} 38. Rc5 {[%clk 0:00:17.5]} 38... Kf7 {[%clk
0:01:18]} 39. Rb5 {[%clk 0:00:17.9]} 39... g5 {[%clk 0:01:15.9]} 40. Rb6 {[%clk
0:00:17.9]} 40... Kg7 {[%clk 0:01:13.3]} 41. e3 {[%clk 0:00:17.7]} 41... h5
{[%clk 0:01:11.7]} 42. Kf1 {[%clk 0:00:17.5]} 42... Rc7 {[%clk 0:01:09.7]} 43.
Ke2 {[%clk 0:00:14.2]} 43... Rc2+ {[%clk 0:01:08.4]} 44. Ke1 {[%clk 0:00:14]}
44... Rc7 {[%clk 0:01:07.6]} 45. Ke2 {[%clk 0:00:14.1]} 45... Kf7 {[%clk
0:01:04.9]} 46. Ke1 {[%clk 0:00:13.1]} 46... Kg7 {[%clk 0:01:01.1]} 47. Ke2
{[%clk 0:00:13.3]} 1/2-1/2

[Event "*** Titled Tuesday Blitz"]
[Site "Chess.com"]
[Date "2021.03.02"]
[Round "6"]
[White "Federtiu"]
[Black "Grandelicious"]
[Result "0-1"]
[WhiteElo "2641"]
[BlackElo "2852"]
[TimeControl "180+1"]
[EndTime "11:06:44 PST"]
[Termination "Grandelicious won on time"]

1. e4 {[%clk 0:02:58]} 1... c6 {[%clk 0:02:57.3]} 2. d4 {[%clk 0:02:52]} 2... d5
{[%clk 0:02:57.7]} 3. e5 {[%clk 0:02:49.4]} 3... c5 {[%clk 0:02:56.1]} 4. Nf3
{[%clk 0:02:42.7]} 4... cxd4 {[%clk 0:02:53.2]} 5. Nxd4 {[%clk 0:02:43.6]} 5...
Nc6 {[%clk 0:02:53.6]} 6. c4 {[%clk 0:02:41.4]} 6... e6 {[%clk 0:02:52.6]} 7.
Nc3 {[%clk 0:02:41.2]} 7... Bc5 {[%clk 0:02:47.1]} 8. Nxc6 {[%clk 0:02:39.6]}
8... bxc6 {[%clk 0:02:48]} 9. cxd5 {[%clk 0:02:40.4]} 9... exd5 {[%clk
0:02:46.3]} 10. Bd3 {[%clk 0:02:19.6]} 10... Ne7 {[%clk 0:02:44.2]} 11. O-O
{[%clk 0:02:14.7]} 11... O-O {[%clk 0:02:39.1]} 12. Na4 {[%clk 0:02:14.3]} 12...
Bb6 {[%clk 0:02:34.7]} 13. b3 {[%clk 0:02:07.3]} 13... Re8 {[%clk 0:02:29]} 14.
Bb2 {[%clk 0:01:52]} 14... Ng6 {[%clk 0:02:13.5]} 15. Bxg6 {[%clk 0:01:33.7]}
15... hxg6 {[%clk 0:02:14.4]} 16. Rc1 {[%clk 0:01:34.1]} 16... Bd7 {[%clk
0:02:05.4]} 17. Nc5 {[%clk 0:01:29.5]} 17... Bf5 {[%clk 0:01:57.1]} 18. Re1
{[%clk 0:01:26.2]} 18... Qg5 {[%clk 0:01:50.9]} 19. Bd4 {[%clk 0:01:08.4]} 19...
Re7 {[%clk 0:01:41.6]} 20. Rc3 {[%clk 0:00:57.3]} 20... Rae8 {[%clk 0:01:36.8]}
21. g3 {[%clk 0:00:24.9]} 21... Ba5 {[%clk 0:01:22.4]} 22. f4 {[%clk 0:00:21.4]}
22... Qh6 {[%clk 0:01:19.6]} 23. h4 {[%clk 0:00:14.3]} 23... f6 {[%clk
0:00:44.8]} 24. Na4 {[%clk 0:00:06.5]} 24... Bxc3 {[%clk 0:00:39.1]} 25. Bxc3
{[%clk 0:00:06]} 25... g5 {[%clk 0:00:37.2]} 26. fxg5 {[%clk 0:00:01.7]} 26...
fxg5 {[%clk 0:00:37.3]} 27. Qf3 {[%clk 0:00:01.8]} 27... Be4 {[%clk 0:00:25]}
28. Qg4 {[%clk 0:00:01.4]} 28... gxh4 {[%clk 0:00:25.5]} 0-1

[Event "*** Titled Tuesday Blitz"]
[Site "Chess.com"]
[Date "2021.03.02"]
[Round "6"]
[White "NateSolon"]
[Black "Problematique_99"]
[Result "1-0"]
[WhiteElo "2595"]
[BlackElo "2447"]
[TimeControl "180+1"]
[EndTime "11:06:44 PST"]
[Termination "NateSolon won by resignation"]

1. d4 {[%clk 0:03:00.9]} 1... Nf6 {[%clk 0:02:59.2]} 2. c4 {[%clk 0:03:00.9]}
2... e6 {[%clk 0:02:59.4]} 3. Nf3 {[%clk 0:03:01]} 3... d5 {[%clk 0:02:58.9]} 4.
g3 {[%clk 0:03:00.5]} 4... Be7 {[%clk 0:02:58.1]} 5. Bg2 {[%clk 0:03:00.7]} 5...
O-O {[%clk 0:02:58.4]} 6. O-O {[%clk 0:03:00]} 6... dxc4 {[%clk 0:02:58.6]} 7.
Qc2 {[%clk 0:02:57.7]} 7... a6 {[%clk 0:02:57.1]} 8. a4 {[%clk 0:02:56.5]} 8...
Bd7 {[%clk 0:02:54.8]} 9. Rd1 {[%clk 0:02:56.1]} 9... Bc6 {[%clk 0:02:51.7]} 10.
Nc3 {[%clk 0:02:49.1]} 10... Bxf3 {[%clk 0:02:40.2]} 11. Bxf3 {[%clk 0:02:49.2]}
11... c6 {[%clk 0:02:38.7]} 12. a5 {[%clk 0:02:34]} 12... Bb4 {[%clk 0:02:22.5]}
13. Qa4 {[%clk 0:02:33]} 13... Qe7 {[%clk 0:02:08.1]} 14. Na2 {[%clk 0:02:03.9]}
14... c5 {[%clk 0:01:50.9]} 15. dxc5 {[%clk 0:01:59.4]} 15... Bxc5 {[%clk
0:01:49.9]} 16. Qxc4 {[%clk 0:01:59.5]} 16... Rc8 {[%clk 0:01:46.9]} 17. Qh4
{[%clk 0:01:47.1]} 17... Nc6 {[%clk 0:01:37.6]} 18. Nc3 {[%clk 0:01:41.3]} 18...
Nd4 {[%clk 0:01:35.3]} 19. Rxd4 {[%clk 0:01:38.5]} 19... Bxd4 {[%clk 0:01:27.6]}
20. Qxd4 {[%clk 0:01:39.4]} 20... Rd8 {[%clk 0:01:18.1]} 21. Qb6 {[%clk
0:01:35.2]} 21... Nd5 {[%clk 0:01:14.2]} 22. Nxd5 {[%clk 0:01:29.8]} 22... exd5
{[%clk 0:01:15.1]} 23. Be3 {[%clk 0:01:25.5]} 23... Rac8 {[%clk 0:01:13.7]} 24.
Rd1 {[%clk 0:01:23.5]} 24... Rc6 {[%clk 0:01:12]} 25. Qb3 {[%clk 0:01:23.2]}
25... Qe6 {[%clk 0:00:47.6]} 26. Bb6 {[%clk 0:01:11.8]} 26... Rd7 {[%clk
0:00:44.4]} 27. Bxd5 {[%clk 0:01:01.6]} 27... Qxe2 {[%clk 0:00:25.8]} 28. Kg2
{[%clk 0:00:30.5]} 28... Rcd6 {[%clk 0:00:22.1]} 29. Bxf7+ {[%clk 0:00:27.7]}
29... Rxf7 {[%clk 0:00:20.4]} 30. Rxd6 {[%clk 0:00:27.7]} 30... Qe4+ {[%clk
0:00:16.3]} 31. f3 {[%clk 0:00:28]} 31... Qe2+ {[%clk 0:00:14.6]} 32. Bf2 {[%clk
0:00:28.2]} 32... h5 {[%clk 0:00:11]} 33. Rd8+ {[%clk 0:00:28]} 1-0

[Event "*** Titled Tuesday Blitz"]
[Site "Chess.com"]
[Date "2021.03.02"]
[Round "6"]
[White "oogee"]
[Black "Mazanchenko_Dmitry"]
[Result "1/2-1/2"]
[WhiteElo "2371"]
[BlackElo "2112"]
[TimeControl "180+1"]
[EndTime "11:06:44 PST"]
[Termination "Game drawn by agreement"]

1. d4 {[%clk 0:03:00.9]} 1... g6 {[%clk 0:02:59.5]} 2. c4 {[%clk 0:03:00.6]}
2... Bg7 {[%clk 0:02:59.8]} 3. Nc3 {[%clk 0:03:00.8]} 3... d6 {[%clk 0:03:00.4]}
4. Nf3 {[%clk 0:03:00.7]} 4... Bg4 {[%clk 0:02:59.2]} 5. e4 {[%clk 0:02:54.9]}
5... Nc6 {[%clk 0:02:58.7]} 6. Be3 {[%clk 0:02:52.6]} 6... e5 {[%clk 0:02:58.6]}
7. d5 {[%clk 0:02:48.2]} 7... Nd4 {[%clk 0:02:57.5]} 8. Be2 {[%clk 0:02:48.5]}
8... Bxf3 {[%clk 0:02:57]} 9. Bxf3 {[%clk 0:02:48.5]} 9... c5 {[%clk 0:02:57.5]}
10. h4 {[%clk 0:02:39.7]} 10... f5 {[%clk 0:02:49.6]} 11. exf5 {[%clk
0:02:36.2]} 11... gxf5 {[%clk 0:02:50.5]} 12. Bh5+ {[%clk 0:02:35.7]} 12... Kf8
{[%clk 0:02:49.9]} 13. Bg5 {[%clk 0:02:32.2]} 13... Bf6 {[%clk 0:02:47.4]} 14.
Qd2 {[%clk 0:02:26.2]} 14... h6 {[%clk 0:02:41]} 15. Bxf6 {[%clk 0:02:17.7]}
15... Nxf6 {[%clk 0:02:38.3]} 16. Bg6 {[%clk 0:02:10]} 16... Kg7 {[%clk
0:02:35.8]} 17. h5 {[%clk 0:02:09.8]} 17... Ng4 {[%clk 0:02:19.8]} 18. Ne2
{[%clk 0:01:57.5]} 18... Qg5 {[%clk 0:02:18.1]} 19. Qxg5 {[%clk 0:01:50]} 19...
hxg5 {[%clk 0:02:16.4]} 20. Nxd4 {[%clk 0:01:50]} 20... exd4 {[%clk 0:02:11]}
21. Bxf5 {[%clk 0:01:50.1]} 21... Nf6 {[%clk 0:02:11.2]} 22. g4 {[%clk
0:01:49.3]} 22... Raf8 {[%clk 0:02:02.9]} 23. Kd2 {[%clk 0:01:47.4]} 23... Nxh5
{[%clk 0:02:02.4]} 24. Rae1 {[%clk 0:01:44.2]} 24... Rf7 {[%clk 0:01:50.8]} 25.
Re6 {[%clk 0:01:37.7]} 25... Nf4 {[%clk 0:01:19.6]} 26. Rxh8 {[%clk 0:01:34.9]}
26... Kxh8 {[%clk 0:01:20.5]} 27. Rxd6 {[%clk 0:01:34]} 27... Re7 {[%clk
0:01:17.2]} 28. Rh6+ {[%clk 0:01:31.6]} 28... Kg7 {[%clk 0:01:12.4]} 29. Rh7+
{[%clk 0:01:31.2]} 29... Kf6 {[%clk 0:01:12]} 30. Rxe7 {[%clk 0:01:27.1]} 30...
Kxe7 {[%clk 0:01:12.9]} 31. a3 {[%clk 0:01:08.3]} 31... b6 {[%clk 0:01:12]} 32.
b4 {[%clk 0:01:07]} 32... Kd6 {[%clk 0:01:07.9]} 33. Kc2 {[%clk 0:01:04.2]}
33... a5 {[%clk 0:01:03.6]} 34. Kb3 {[%clk 0:00:59.8]} 34... axb4 {[%clk
0:01:02.3]} 35. axb4 {[%clk 0:00:59.5]} 35... Ne2 {[%clk 0:00:57.2]} 36. b5
{[%clk 0:00:37.5]} 36... Nf4 {[%clk 0:00:56.5]} 37. Kc2 {[%clk 0:00:37.7]} 37...
Nh3 {[%clk 0:00:56.5]} 38. f3 {[%clk 0:00:36.1]} 38... Nf4 {[%clk 0:00:54.2]}
39. Kd2 {[%clk 0:00:35.1]} 39... Ke5 {[%clk 0:00:54.1]} 40. Ke1 {[%clk
0:00:33.9]} 40... Kd6 {[%clk 0:00:53.3]} 41. Kf2 {[%clk 0:00:33.7]} 41... Ke5
{[%clk 0:00:53.1]} 42. Be4 {[%clk 0:00:33.5]} 42... Kd6 {[%clk 0:00:37.1]} 43.
Kg3 {[%clk 0:00:32.5]} 43... Ke5 {[%clk 0:00:36.8]} 44. Kf2 {[%clk 0:00:32.6]}
44... Kd6 {[%clk 0:00:36.5]} 45. Ke1 {[%clk 0:00:32.7]} 45... Ke5 {[%clk
0:00:35.5]} 46. Kd2 {[%clk 0:00:32.1]} 1/2-1/2

[Event "*** Titled Tuesday Blitz"]
[Site "Chess.com"]
[Date "2021.03.02"]
[Round "6"]
[White "Savagelittlemole"]
[Black "1random"]
[Result "1-0"]
[WhiteElo "2522"]
[BlackElo "2652"]
[TimeControl "180+1"]
[EndTime "11:06:48 PST"]
[Termination "Savagelittlemole won by checkmate"]

1. e4 {[%clk 0:03:00.9]} 1... d5 {[%clk 0:03:00.3]} 2. exd5 {[%clk 0:03:00.7]}
2... Nf6 {[%clk 0:03:01]} 3. Bb5+ {[%clk 0:03:00.2]} 3... Nbd7 {[%clk
0:03:01.8]} 4. Nc3 {[%clk 0:02:59.5]} 4... a6 {[%clk 0:03:02.3]} 5. Ba4 {[%clk
0:02:56.5]} 5... b5 {[%clk 0:03:03]} 6. Bb3 {[%clk 0:02:56.9]} 6... Nb6 {[%clk
0:03:03.9]} 7. Nge2 {[%clk 0:02:55.4]} 7... Nbxd5 {[%clk 0:03:04.4]} 8. O-O
{[%clk 0:02:55.3]} 8... e6 {[%clk 0:03:05.3]} 9. d4 {[%clk 0:02:53.2]} 9... Be7
{[%clk 0:03:05.7]} 10. Bg5 {[%clk 0:02:45.1]} 10... O-O {[%clk 0:03:05.9]} 11.
Nxd5 {[%clk 0:02:44.7]} 11... exd5 {[%clk 0:03:04.6]} 12. Nf4 {[%clk 0:02:31.4]}
12... c6 {[%clk 0:03:01.9]} 13. c3 {[%clk 0:02:31.6]} 13... Bf5 {[%clk
0:03:01.9]} 14. Bxf6 {[%clk 0:02:27.6]} 14... Bxf6 {[%clk 0:03:01.7]} 15. Bc2
{[%clk 0:02:26.8]} 15... Bxc2 {[%clk 0:03:01.3]} 16. Qxc2 {[%clk 0:02:27.7]}
16... Qd6 {[%clk 0:03:01.9]} 17. Nd3 {[%clk 0:02:26.1]} 17... a5 {[%clk
0:03:02.2]} 18. Rae1 {[%clk 0:02:23.5]} 18... a4 {[%clk 0:02:57.4]} 19. a3
{[%clk 0:02:22.8]} 19... Rfe8 {[%clk 0:02:57.2]} 20. Re2 {[%clk 0:02:21.9]}
20... Rxe2 {[%clk 0:02:57]} 21. Qxe2 {[%clk 0:02:22.8]} 21... g6 {[%clk
0:02:55.2]} 22. Re1 {[%clk 0:02:22.8]} 22... Kg7 {[%clk 0:02:54.6]} 23. Nc5
{[%clk 0:02:16.7]} 23... Ra7 {[%clk 0:02:50.9]} 24. g3 {[%clk 0:02:07.5]} 24...
h5 {[%clk 0:02:50]} 25. Kg2 {[%clk 0:02:06.5]} 25... Re7 {[%clk 0:02:48.4]} 26.
Qd1 {[%clk 0:01:58.1]} 26... Qd8 {[%clk 0:02:30.3]} 27. Re2 {[%clk 0:01:53.2]}
27... Qe8 {[%clk 0:02:30.8]} 28. Rxe7 {[%clk 0:01:52.9]} 28... Qxe7 {[%clk
0:02:31.7]} 29. Kf1 {[%clk 0:01:51.7]} 29... Qe8 {[%clk 0:02:21.2]} 30. Qe2
{[%clk 0:01:51.3]} 30... Qc8 {[%clk 0:02:21.8]} 31. Kg2 {[%clk 0:01:49.6]} 31...
Qf5 {[%clk 0:02:21.9]} 32. h4 {[%clk 0:01:41.6]} 32... Qb1 {[%clk 0:02:08.9]}
33. Nd3 {[%clk 0:01:37]} 33... Kf8 {[%clk 0:01:58.5]} 34. Nb4 {[%clk 0:01:35.3]}
34... g5 {[%clk 0:01:37.9]} 35. hxg5 {[%clk 0:01:33.1]} 35... Bxg5 {[%clk
0:01:37.8]} 36. Qxh5 {[%clk 0:01:27.8]} 36... Bc1 {[%clk 0:01:23.8]} 37. Nxc6
{[%clk 0:01:05.7]} 37... Qe4+ {[%clk 0:01:23.7]} 38. Kh2 {[%clk 0:01:05]} 38...
Ke8 {[%clk 0:01:17]} 39. Ne5 {[%clk 0:00:59.4]} 39... Qh1+ {[%clk 0:00:19.2]}
40. Kxh1 {[%clk 0:00:59.1]} 40... Bh6 {[%clk 0:00:20.1]} 41. Qxf7+ {[%clk
0:00:58.6]} 41... Kd8 {[%clk 0:00:01.3]} 42. Qd7# {[%clk 0:00:59.5]} 1-0

[Event "*** Titled Tuesday Blitz"]
[Site "Chess.com"]
[Date "2021.03.02"]
[Round "6"]
[White "zmeeed67"]
[Black "Godzillator"]
[Result "1-0"]
[WhiteElo "2431"]
[BlackElo "2289"]
[TimeControl "180+1"]
[EndTime "11:06:50 PST"]
[Termination "zmeeed67 won by checkmate"]

1. d4 {[%clk 0:03:00.9]} 1... d5 {[%clk 0:02:59.7]} 2. c4 {[%clk 0:03:01.1]}
2... c6 {[%clk 0:02:59.8]} 3. Nc3 {[%clk 0:03:01.5]} 3... Nf6 {[%clk 0:02:59.2]}
4. e3 {[%clk 0:03:01.9]} 4... a6 {[%clk 0:02:57.5]} 5. Bd3 {[%clk 0:02:58.5]}
5... b5 {[%clk 0:02:53]} 6. b3 {[%clk 0:02:58]} 6... Bg4 {[%clk 0:02:51.8]} 7.
Nge2 {[%clk 0:02:57.7]} 7... e6 {[%clk 0:02:52.1]} 8. O-O {[%clk 0:02:57.5]}
8... Bh5 {[%clk 0:02:48.6]} 9. f3 {[%clk 0:02:39.2]} 9... Bg6 {[%clk 0:02:44.5]}
10. Nf4 {[%clk 0:02:18.5]} 10... Bd6 {[%clk 0:02:43.2]} 11. Nxg6 {[%clk
0:02:16.5]} 11... hxg6 {[%clk 0:02:42.7]} 12. h3 {[%clk 0:02:17]} 12... Qc7
{[%clk 0:02:34.9]} 13. f4 {[%clk 0:02:03]} 13... Nbd7 {[%clk 0:02:31.2]} 14. c5
{[%clk 0:02:02.1]} 14... Be7 {[%clk 0:02:30]} 15. Qf3 {[%clk 0:02:01.6]} 15...
a5 {[%clk 0:02:27.4]} 16. Bd2 {[%clk 0:01:58.9]} 16... O-O {[%clk 0:02:11.6]}
17. g4 {[%clk 0:01:50.4]} 17... b4 {[%clk 0:02:00.2]} 18. Ne2 {[%clk 0:01:37.7]}
18... Rad8 {[%clk 0:01:53.5]} 19. Ng3 {[%clk 0:01:29.7]} 19... Rfe8 {[%clk
0:01:45.1]} 20. Kg2 {[%clk 0:01:22.7]} 20... Bf8 {[%clk 0:01:37.1]} 21. h4
{[%clk 0:01:18.5]} 21... Nh7 {[%clk 0:01:15.1]} 22. h5 {[%clk 0:01:10.5]} 22...
gxh5 {[%clk 0:01:09.4]} 23. Rh1 {[%clk 0:00:55.3]} 23... Ndf6 {[%clk 0:00:53.7]}
24. Nxh5 {[%clk 0:00:40.2]} 24... Ne4 {[%clk 0:00:42.2]} 25. Bxe4 {[%clk
0:00:35.7]} 25... dxe4 {[%clk 0:00:42.4]} 26. Qh3 {[%clk 0:00:35.7]} 26... f5
{[%clk 0:00:35.4]} 27. g5 {[%clk 0:00:13.9]} 27... g6 {[%clk 0:00:10.4]} 28.
Nf6+ {[%clk 0:00:13.5]} 28... Nxf6 {[%clk 0:00:10.5]} 29. Qh8+ {[%clk
0:00:14.4]} 29... Kf7 {[%clk 0:00:10.7]} 30. Qxf6+ {[%clk 0:00:14.1]} 30... Kg8
{[%clk 0:00:11.1]} 31. Rh8# {[%clk 0:00:14.1]} 1-0

[Event "*** Titled Tuesday Blitz"]
[Site "Chess.com"]
[Date "2021.03.02"]
[Round "6"]
[White "anpospan"]
[Black "j2806"]
[Result "1-0"]
[WhiteElo "2378"]
[BlackElo "2090"]
[TimeControl "180+1"]
[EndTime "11:06:51 PST"]
[Termination "anpospan won by resignation"]

1. d4 {[%clk 0:03:00.9]} 1... d5 {[%clk 0:02:57.7]} 2. c4 {[%clk 0:03:01.2]}
2... e6 {[%clk 0:02:55.1]} 3. Nc3 {[%clk 0:03:01.1]} 3... Nf6 {[%clk 0:02:55.4]}
4. cxd5 {[%clk 0:03:01.1]} 4... exd5 {[%clk 0:02:54.8]} 5. Bg5 {[%clk
0:03:00.7]} 5... c6 {[%clk 0:02:55.4]} 6. e3 {[%clk 0:03:00.5]} 6... Be7 {[%clk
0:02:52.5]} 7. Bd3 {[%clk 0:03:00.4]} 7... Nbd7 {[%clk 0:02:52.6]} 8. Nge2
{[%clk 0:02:59.9]} 8... Nh5 {[%clk 0:02:52.4]} 9. Bxe7 {[%clk 0:02:58.8]} 9...
Qxe7 {[%clk 0:02:53.3]} 10. Qc2 {[%clk 0:02:54.9]} 10... g6 {[%clk 0:02:37.3]}
11. g4 {[%clk 0:02:51.1]} 11... Ng7 {[%clk 0:02:35.1]} 12. h4 {[%clk 0:02:49.8]}
12... Nb6 {[%clk 0:02:29.6]} 13. g5 {[%clk 0:02:41.4]} 13... Bf5 {[%clk
0:02:25.6]} 14. O-O-O {[%clk 0:02:35.1]} 14... O-O-O {[%clk 0:02:21.9]} 15. Kb1
{[%clk 0:02:24.5]} 15... h6 {[%clk 0:02:11.6]} 16. Bxf5+ {[%clk 0:01:57.1]}
16... Nxf5 {[%clk 0:02:10.2]} 17. gxh6 {[%clk 0:01:51.4]} 17... Rxh6 {[%clk
0:02:08.2]} 18. h5 {[%clk 0:01:51.5]} 18... Rdh8 {[%clk 0:02:04.1]} 19. Nf4
{[%clk 0:01:45.1]} 19... Kb8 {[%clk 0:01:59.2]} 20. Rhg1 {[%clk 0:01:21.9]}
20... Qf6 {[%clk 0:01:28.5]} 21. hxg6 {[%clk 0:01:18.6]} 21... fxg6 {[%clk
0:01:27.4]} 22. a4 {[%clk 0:01:09.5]} 22... g5 {[%clk 0:01:22.7]} 23. Nd3 {[%clk
0:01:08.3]} 23... Nd6 {[%clk 0:01:15]} 24. Ne5 {[%clk 0:01:04.2]} 24... R6h7
{[%clk 0:01:12]} 25. f4 {[%clk 0:00:55.6]} 25... gxf4 {[%clk 0:01:09.7]} 26. Rg6
{[%clk 0:00:54]} 26... Qd8 {[%clk 0:00:57.6]} 27. exf4 {[%clk 0:00:53]} 27...
Nbc8 {[%clk 0:00:54.3]} 28. Qb3 {[%clk 0:00:49.3]} 28... Ka8 {[%clk 0:00:50.4]}
29. Rdg1 {[%clk 0:00:46]} 29... Nf7 {[%clk 0:00:45.6]} 30. f5 {[%clk 0:00:39.2]}
30... Nxe5 {[%clk 0:00:39.5]} 31. dxe5 {[%clk 0:00:39.1]} 31... d4 {[%clk
0:00:40.1]} 32. Ne4 {[%clk 0:00:38.1]} 32... Ne7 {[%clk 0:00:34.3]} 33. Rg7
{[%clk 0:00:36.2]} 33... d3 {[%clk 0:00:19.9]} 34. f6 {[%clk 0:00:33.9]} 34...
Rxg7 {[%clk 0:00:19.2]} 35. Rxg7 {[%clk 0:00:31.9]} 35... Re8 {[%clk 0:00:17.5]}
36. fxe7 {[%clk 0:00:30.3]} 36... Qd7 {[%clk 0:00:16]} 37. Nf6 {[%clk
0:00:27.6]} 37... d2 {[%clk 0:00:14.9]} 38. Nxd7 {[%clk 0:00:27]} 1-0

[Event "*** Titled Tuesday Blitz"]
[Site "Chess.com"]
[Date "2021.03.02"]
[Round "6"]
[White "VitaRasik"]
[Black "ChessWarrior7197"]
[Result "1/2-1/2"]
[WhiteElo "2550"]
[BlackElo "2896"]
[TimeControl "180+1"]
[EndTime "11:06:53 PST"]
[Termination "Game drawn by repetition"]

1. e4 {[%clk 0:02:59]} 1... c6 {[%clk 0:02:59]} 2. d3 {[%clk 0:02:54.6]} 2... d5
{[%clk 0:02:59.9]} 3. Nd2 {[%clk 0:02:54.7]} 3... e5 {[%clk 0:02:59.5]} 4. Ngf3
{[%clk 0:02:54.8]} 4... Bd6 {[%clk 0:02:59.8]} 5. d4 {[%clk 0:02:54.2]} 5...
exd4 {[%clk 0:02:59.8]} 6. exd5 {[%clk 0:02:52.7]} 6... Nf6 {[%clk 0:02:56.4]}
7. dxc6 {[%clk 0:02:52.5]} 7... Nxc6 {[%clk 0:02:57.3]} 8. Be2 {[%clk
0:02:52.7]} 8... O-O {[%clk 0:02:56.4]} 9. O-O {[%clk 0:02:52.7]} 9... Re8
{[%clk 0:02:50.3]} 10. Nb3 {[%clk 0:02:52.3]} 10... Qc7 {[%clk 0:02:45.3]} 11.
h3 {[%clk 0:02:46.5]} 11... Bf5 {[%clk 0:02:18.7]} 12. Nbxd4 {[%clk 0:02:45.9]}
12... Nxd4 {[%clk 0:02:18.9]} 13. Nxd4 {[%clk 0:02:46]} 13... Rad8 {[%clk
0:02:19.8]} 14. c3 {[%clk 0:02:42.1]} 14... Be5 {[%clk 0:02:18.7]} 15. Bf3
{[%clk 0:02:29.2]} 15... Be4 {[%clk 0:01:50.5]} 16. Bg5 {[%clk 0:02:24.7]} 16...
h6 {[%clk 0:01:46.1]} 17. Bxf6 {[%clk 0:02:17.5]} 17... Bxf6 {[%clk 0:01:45]}
18. Bxe4 {[%clk 0:02:17.6]} 18... Rxe4 {[%clk 0:01:45.9]} 19. Qf3 {[%clk
0:02:17.8]} 19... Rf4 {[%clk 0:01:42.1]} 20. Qg3 {[%clk 0:02:03.4]} 20... Be5
{[%clk 0:01:38.8]} 21. Rfe1 {[%clk 0:01:55.3]} 21... Re4 {[%clk 0:01:20.3]} 22.
Qf3 {[%clk 0:01:49]} 22... Rxe1+ {[%clk 0:01:20.4]} 23. Rxe1 {[%clk 0:01:48.3]}
23... Bxd4 {[%clk 0:01:21]} 24. cxd4 {[%clk 0:01:48]} 24... Rxd4 {[%clk
0:01:21.7]} 25. Re8+ {[%clk 0:01:47]} 25... Kh7 {[%clk 0:01:22.2]} 26. g3 {[%clk
0:01:38.3]} 26... Qd7 {[%clk 0:01:18.6]} 27. Rb8 {[%clk 0:01:30.5]} 27... Rb4
{[%clk 0:00:57.9]} 28. b3 {[%clk 0:01:25.8]} 28... Rb6 {[%clk 0:00:51]} 29. Kg2
{[%clk 0:01:21.5]} 29... a6 {[%clk 0:00:38.8]} 30. Qe4+ {[%clk 0:01:16.2]} 30...
f5 {[%clk 0:00:38.8]} 31. Qc4 {[%clk 0:01:09.4]} 31... Re6 {[%clk 0:00:33.1]}
32. Rd8 {[%clk 0:00:55.1]} 32... Qxd8 {[%clk 0:00:25.2]} 33. Qxe6 {[%clk
0:00:55]} 33... Qa5 {[%clk 0:00:26]} 34. a4 {[%clk 0:00:53]} 34... Qc5 {[%clk
0:00:25.4]} 35. h4 {[%clk 0:00:51.5]} 35... b5 {[%clk 0:00:20.2]} 36. axb5
{[%clk 0:00:50.6]} 36... axb5 {[%clk 0:00:20.4]} 37. h5 {[%clk 0:00:50.1]} 37...
Qf8 {[%clk 0:00:09.9]} 38. Kf3 {[%clk 0:00:47.8]} 38... Qc5 {[%clk 0:00:09.8]}
39. Qg6+ {[%clk 0:00:47]} 39... Kg8 {[%clk 0:00:10.3]} 40. Qe8+ {[%clk
0:00:46.7]} 40... Kh7 {[%clk 0:00:10.9]} 41. Qg6+ {[%clk 0:00:46.7]} 41... Kg8
{[%clk 0:00:11.3]} 42. Qe8+ {[%clk 0:00:42.7]} 42... Kh7 {[%clk 0:00:11.6]} 43.
Qg6+ {[%clk 0:00:42.7]} 1/2-1/2